bitfinex/quotes_SOLUSD_20250410
["timestamp","ask_amount","ask_price","bid_price","bid_amount"]
[1744319416731,0.063,112.65,112.64,39.6765]
[1744319421241,0.063,112.65,112.64,62.8461206]
[1744319421639,0.063,112.65,112.64,54.5661206]
[1744319421821,0.063,112.65,112.64,62.8461206]
[1744319424642,26.0,112.69,112.64,48.5543]
[1744319424828,14.2918206,112.68,112.64,62.8461206]
[1744319425326,14.2918206,112.68,112.64,48.5543]
[1744319425547,14.2918206,112.68,112.64,62.8461206]
[1744319425745,23.1665206,112.68,112.64,62.8461206]
[1744319427951,50.7577206,112.69,112.64,62.8461206]
[1744319428258,14.2918206,112.68,112.64,62.8461206]
[1744319430249,14.2918206,112.68,112.64,62.8261206]
[1744319430954,50.7577206,112.69,112.64,62.8261206]
[1744319434652,50.7577206,112.69,112.64,48.5343]
[1744319434855,50.7577206,112.69,112.64,62.3261206]
[1744319435957,23.1653206,112.7,112.66,14.2918206]
[1744319437157,23.1653206,112.7,112.66,23.1676206]
[1744319437739,23.1653206,112.7,112.66,8.8758]
[1744319438758,23.1653206,112.7,112.63,24.74954886]
[1744319438759,0.14216157,112.66,112.63,30.8965]
[1744319438963,14.2918206,112.64,112.61,30.8965]
[1744319439133,14.2918206,112.62,112.61,30.8965]
[1744319440658,23.31338217,112.62,112.58,30.8965]
[1744319440827,14.2918206,112.59,112.58,30.8965]
[1744319444048,23.1735206,112.59,112.57,0.063]
[1744319444249,14.2918206,112.58,112.57,0.063]
[1744319453577,14.2918206,112.61,112.57,79.5113206]
[1744319454271,14.2918206,112.6,112.57,65.2195]
[1744319454572,1.5788,112.63,112.57,65.2195]
[1744319454573,14.2918206,112.61,112.58,8.8825]
[1744319454750,14.2918206,112.59,112.57,39.2195]
[1744319454950,14.2918206,112.58,112.57,39.2195]
[1744319455873,14.2918206,112.58,112.57,30.9595]
[1744319463113,14.2918206,112.58,112.57,0.063]
[1744319463310,23.1743206,112.58,112.57,0.063]
[1744319463619,14.2918206,112.58,112.57,0.063]
[1744319464626,23.1743206,112.58,112.57,0.063]
[1744319466323,14.2918206,112.58,112.57,0.063]
[1744319467030,23.1743206,112.58,112.57,0.063]
[1744319467625,14.2918206,112.58,112.57,0.063]
[1744319470131,23.1743206,112.58,112.57,0.063]
[1744319473730,14.2918206,112.58,112.57,0.063]
[1744319474019,23.60080531,112.58,112.57,0.063]
[1744319476829,42.25045417,112.58,112.57,0.063]
[1744319477021,0.42648471,112.56,112.54,0.063]
[1744319477335,14.2918206,112.55,112.54,0.063]
[1744319479541,23.1767206,112.55,112.54,0.063]
[1744319479850,14.2918206,112.55,112.54,0.063]
[1744319480444,42.25285417,112.55,112.54,0.063]
[1744319480821,0.42648471,112.53,112.52,30.9595]
[1744319481031,14.71830531,112.53,112.5,0.063]
[1744319481219,14.2918206,112.51,112.5,0.063]
[1744319482359,23.1798206,112.51,112.5,0.063]
[1744319482636,23.60630531,112.51,112.5,0.063]
[1744319483336,80.77358771,112.51,112.5,0.063]
[1744319484235,23.60630531,112.51,112.5,0.063]
[1744319485215,99.42323657,112.51,112.5,0.063]
[1744319486029,42.25595417,112.51,112.5,0.063]
[1744319486340,23.60630531,112.51,112.5,0.063]
[1744319487525,0.28432314,112.53,112.5,0.063]
[1744319487839,14.2918206,112.51,112.5,0.063]
[1744319501121,23.60630531,112.51,112.5,0.063]
[1744319514454,14.2918206,112.51,112.5,0.063]
[1744319516072,23.1798206,112.51,112.5,0.063]
[1744319517670,14.2918206,112.51,112.5,0.063]
[1744319519360,23.1798206,112.51,112.5,0.063]
[1744319520173,14.2918206,112.51,112.5,0.063]
[1744319520763,14.2918206,112.52,112.5,0.063]
[1744319522989,1.6354,112.57,112.5,45.2513206]
[1744319523153,8.8841,112.56,112.51,14.2918206]
[1744319523465,0.03,112.57,112.53,14.2918206]
[1744319523660,0.03,112.57,112.55,14.2918206]
[1744319523858,0.03,112.57,112.56,14.2918206]
[1744319524069,0.03,112.57,112.56,45.1883206]
[1744319524276,0.03,112.57,112.56,30.8965]
[1744319524883,0.03,112.57,112.56,39.7806]
[1744319525765,0.03,112.57,112.56,54.0724206]
[1744319526353,0.03,112.57,112.56,30.8965]
[1744319529580,0.03,112.57,112.56,39.7806]
[1744319529790,0.03,112.57,112.56,54.0724206]
[1744319530462,0.03,112.57,112.56,30.8965]
[1744319531551,0.03,112.57,112.56,39.7806]
[1744319534259,0.03,112.57,112.56,30.8965]
[1744319537395,14.3218206,112.57,112.56,30.8965]
[1744319537588,14.74830531,112.57,112.56,30.8965]
[1744319537888,33.39795417,112.57,112.56,30.8965]
[1744319538093,8.8857,112.54,112.51,30.8965]
[1744319538297,14.2918206,112.53,112.51,30.8965]
[1744319539090,23.1775206,112.54,112.51,30.8965]
[1744319540093,14.2918206,112.54,112.51,30.8965]
[1744319540274,14.2918206,112.54,112.51,39.7844]
[1744319546203,23.1775206,112.54,112.51,30.8965]
[1744319546379,14.2918206,112.53,112.51,30.8965]
[1744319548781,14.71830531,112.51,112.5,0.063]
[1744319549599,23.60630531,112.51,112.5,0.063]
[1744319550205,99.42323657,112.51,112.49,0.063]
[1744319550406,71.88558771,112.5,112.47,30.9595]
[1744319550709,14.2918206,112.48,112.47,30.9595]
[1744319552378,23.1822206,112.48,112.47,30.9595]
[1744319552907,23.1822206,112.48,112.47,0.063]
[1744319554011,23.60870531,112.48,112.47,0.063]
[1744319554507,42.25835417,112.48,112.47,0.063]
[1744319555319,42.25835417,112.48,112.46,0.063]
[1744319555320,0.42648471,112.47,112.46,0.063]
[1744319555516,59.36795417,112.46,112.45,0.063]
[1744319555684,18.64964886,112.45,112.44,0.03]
[1744319555885,99.00155186,112.45,112.44,0.03]
[1744319556102,41.83426946,112.45,112.44,0.03]
[1744319557122,26.14216157,112.43,112.42,0.03]
[1744319557316,0.42648471,112.41,112.39,0.063]
[1744319557817,48.8826546,112.4,112.39,0.063]
[1744319558505,57.7793546,112.4,112.39,0.063]
[1744319567428,76.42900346,112.4,112.39,0.063]
[1744319568304,57.7793546,112.4,112.39,0.063]
[1744319571492,76.42900346,112.4,112.39,0.063]
[1744319573290,18.64964886,112.39,112.38,0.063]
[1744319573493,41.53230346,112.39,112.38,0.063]
[1744319573712,41.53230346,112.39,112.38,0.0001]
[1744319573713,63.98847335,112.39,112.38,0.0001]
[1744319574723,41.53230346,112.39,112.38,0.0001]
[1744319575318,72.88597335,112.39,112.38,0.0001]
[1744319578035,50.42980346,112.39,112.38,0.0001]
[1744319578237,31.49583146,112.39,112.38,0.0001]
[1744319579024,50.42980346,112.39,112.38,0.0001]
[1744319579425,99.85449447,112.39,112.38,0.0001]
[1744319579741,26.0,112.36,112.27,0.063]
[1744319579904,19.07613357,112.34,112.27,14.43917218]
[1744319580105,14.37617218,112.32,112.27,14.43917218]
[1744319580306,19.07613357,112.34,112.29,14.37617218]
[1744319580533,19.07613357,112.34,112.27,0.063]
[1744319580534,14.37617218,112.32,112.27,0.063]
[1744319580716,14.37617218,112.32,112.28,14.40617218]
[1744319581320,14.37617218,112.31,112.28,0.03]
[1744319581707,23.28037218,112.31,112.28,0.03]
[1744319581906,14.37617218,112.29,112.26,80.623]
[1744319582112,14.37617218,112.29,112.25,14.37617218]
[1744319582327,14.37617218,112.29,112.24,97.772]
[1744319582530,14.80265689,112.3,112.25,14.37617218]
[1744319582922,14.80265689,112.3,112.26,14.37617218]
[1744319583120,8.9055,112.29,112.26,14.37617218]
[1744319583639,23.28117218,112.3,112.26,14.37617218]
[1744319583819,8.905,112.3,112.26,14.37617218]
[1744319584234,23.28117218,112.3,112.26,14.37617218]
[1744319584738,23.28117218,112.3,112.26,94.99917218]
[1744319584959,8.905,112.3,112.26,94.99917218]
[1744319586136,8.905,112.3,112.26,80.623]
[1744319586433,8.905,112.3,112.26,103.90697218]
[1744319586833,0.42648471,112.28,112.22,80.623]
[1744319587007,14.37617218,112.27,112.22,94.99917218]
[1744319587322,14.37617218,112.27,112.22,103.90997218]
[1744319587526,0.14216157,112.29,112.23,14.37617218]
[1744319587718,14.37617218,112.28,112.23,14.37617218]
[1744319587921,0.42648471,112.29,112.22,95.6254]
[1744319587922,14.37617218,112.26,112.22,80.623]
[1744319588316,14.37617218,112.26,112.22,103.91007218]
[1744319588522,19.07613357,112.29,112.23,14.37617218]
[1744319588523,14.37617218,112.28,112.23,14.37617218]
[1744319589050,23.28327218,112.27,112.23,8.9102]
[1744319589753,23.28327218,112.27,112.23,23.28637218]
[1744319590345,23.28327218,112.27,112.23,8.9102]
[1744319591053,14.37617218,112.26,112.23,8.9102]
[1744319591555,14.37617218,112.27,112.23,8.9102]
[1744319592044,14.37617218,112.27,112.23,89.5332]
[1744319592479,23.28327218,112.27,112.23,89.5332]
[1744319592641,14.37617218,112.27,112.23,103.90937218]
[1744319593246,23.28347218,112.27,112.23,89.5332]
[1744319593439,23.28347218,112.27,112.23,103.90937218]
[1744319593644,0.42648471,112.29,112.23,103.90937218]
[1744319593934,14.37617218,112.28,112.23,103.90937218]
[1744319594553,0.42648471,112.29,112.23,103.90937218]
[1744319594855,14.37617218,112.28,112.23,103.90937218]
[1744319595668,14.37617218,112.27,112.23,103.90937218]
[1744319596045,23.28297218,112.28,112.23,103.90937218]
[1744319596557,51.0641,112.33,112.26,14.37617218]
[1744319596558,8.9039,112.31,112.26,14.37617218]
[1744319596756,8.9039,112.31,112.27,14.37617218]
[1744319597063,14.37617218,112.3,112.26,80.623]
[1744319597356,14.37617218,112.29,112.26,80.623]
[1744319597740,23.28197218,112.29,112.26,80.623]
[1744319598457,23.28007218,112.31,112.26,103.90677218]
[1744319598644,22.68548471,112.32,112.28,14.37617218]
[1744319598645,8.9034,112.32,112.28,14.37617218]
[1744319598833,23.27957218,112.32,112.28,14.37617218]
[1744319599851,14.37617218,112.32,112.28,14.37617218]
[1744319600238,14.37617218,112.32,112.27,23.28257218]
[1744319601659,23.27987218,112.32,112.27,23.28257218]
[1744319603158,23.27987218,112.32,112.27,103.90557218]
[1744319603537,23.27987218,112.32,112.28,23.28217218]
[1744319603940,23.27987218,112.32,112.27,80.623]
[1744319603941,14.37617218,112.3,112.27,80.623]
[1744319605362,14.37617218,112.29,112.27,80.623]
[1744319605658,23.28247218,112.28,112.25,88.863]
[1744319605859,23.28247218,112.28,112.25,80.623]
[1744319605860,14.37617218,112.26,112.25,80.623]
[1744319606949,14.37617218,112.27,112.25,80.623]
[1744319608068,23.28327218,112.27,112.25,80.623]
[1744319609183,27.32563357,112.31,112.25,80.623]
[1744319609341,14.37617218,112.29,112.25,94.99917218]
[1744319610249,14.37617218,112.29,112.25,103.90777218]
[1744319611251,31.39892383,112.29,112.25,80.623]
[1744319611778,22.49332383,112.28,112.25,80.623]
[1744319612570,8.9056,112.29,112.25,80.623]
[1744319612874,22.49332383,112.27,112.25,80.623]
[1744319613752,22.49332383,112.28,112.25,80.623]
[1744319615774,31.40022383,112.28,112.25,80.623]
[1744319618573,31.39942383,112.29,112.25,103.11632383]
[1744319619276,31.39942383,112.29,112.25,80.623]
[1744319619575,31.39942383,112.29,112.25,103.11632383]
[1744319620264,31.39942383,112.29,112.25,112.02492383]
[1744319621977,8.9047,112.3,112.25,110.52492383]
[1744319622173,22.49332383,112.29,112.25,88.0316]
[1744319622377,22.49332383,112.29,112.25,101.61632383]
[1744319622678,8.9047,112.3,112.25,101.61632383]
[1744319622868,22.49332383,112.29,112.25,110.52492383]
[1744319623564,22.49332383,112.29,112.25,101.61632383]
[1744319624055,22.49332383,112.3,112.26,22.49332383]
[1744319625181,22.49332383,112.3,112.25,110.52462383]
[1744319625470,22.49332383,112.29,112.25,88.0313]
[1744319626058,8.9063,112.28,112.25,79.123]
[1744319626375,31.39962383,112.28,112.25,79.123]
[1744319627882,31.39962383,112.28,112.23,9.7449]
[1744319627883,45.12880923,112.26,112.23,79.123]
[1744319628174,31.40232383,112.25,112.23,79.123]
[1744319628868,22.49332383,112.24,112.23,79.123]
[1744319630084,31.40272383,112.24,112.23,79.123]
[1744319632583,31.40272383,112.24,112.2,87.393]
[1744319632887,22.49332383,112.23,112.2,87.393]
[1744319633369,14.40904835,112.23,112.2,87.393]
[1744319633572,14.40904835,112.23,112.2,79.153]
[1744319634889,23.31934835,112.23,112.2,79.153]
[1744319636187,14.40904835,112.22,112.2,79.153]
[1744319636375,14.40904835,112.21,112.2,79.153]
[1744319636575,14.40904835,112.23,112.2,79.153]
[1744319636882,23.31874835,112.24,112.2,79.153]
[1744319637076,14.40904835,112.23,112.2,79.153]
[1744319638589,23.31804835,112.25,112.2,102.47464835]
[1744319639291,22.51118585,112.24,112.2,110.57678585]
[1744319640193,31.42068585,112.24,112.2,88.0656]
[1744319640402,22.51118585,112.23,112.2,88.0656]
[1744319640895,31.42068585,112.24,112.2,88.0656]
[1744319642403,22.51118585,112.24,112.2,110.57678585]
[1744319642996,31.42068585,112.24,112.2,110.57678585]
[1744319643294,31.42068585,112.24,112.2,88.0656]
[1744319644794,22.51118585,112.23,112.2,88.0656]
[1744319652081,31.42148585,112.23,112.2,79.153]
[1744319654203,22.51118585,112.23,112.2,88.0656]
[1744319654897,31.42138585,112.23,112.2,88.0656]
[1744319656600,22.51118585,112.22,112.2,79.153]
[1744319657289,22.51118585,112.21,112.2,79.153]
[1744319658101,22.51118585,112.22,112.2,79.153]
[1744319658802,31.42248585,112.22,112.2,79.153]
[1744319659175,22.51118585,112.22,112.2,79.153]
[1744319659379,14.41172406,112.22,112.2,79.153]
[1744319659807,23.32232406,112.23,112.2,79.153]
[1744319660103,23.32152406,112.24,112.2,102.47722406]
[1744319660402,23.32152406,112.24,112.2,88.0655]
[1744319663206,23.32052406,112.25,112.21,14.41172406]
[1744319663393,23.32052406,112.25,112.2,102.47722406]
[1744319664510,14.41172406,112.24,112.2,102.47722406]
[1744319664690,14.41172406,112.24,112.2,88.0655]
[1744319665211,23.32162406,112.24,112.2,79.153]
[1744319665391,14.41172406,112.23,112.2,79.153]
[1744319665911,23.32162406,112.24,112.2,88.0656]
[1744319667288,23.32162406,112.24,112.2,79.153]
[1744319668018,23.32162406,112.24,112.2,102.47722406]
[1744319670048,4.48995971,112.26,112.21,14.41172406]
[1744319670198,23.31952406,112.26,112.22,14.41172406]
[1744319671423,8.9055,112.29,112.25,14.41172406]
[1744319671623,8.9055,112.29,112.25,93.53472406]
[1744319672117,8.9055,112.29,112.25,79.123]
[1744319672325,8.9055,112.29,112.25,102.44292406]
[1744319672512,8.9055,112.29,112.26,14.41172406]
[1744319674329,0.063,112.3,112.27,14.41172406]
[1744319674512,0.063,112.3,112.28,14.41172406]
[1744319674708,0.063,112.3,112.29,14.41172406]
[1744319675219,0.063,112.3,112.28,93.53472406]
[1744319676335,0.063,112.3,112.29,23.31722406]
[1744319678629,0.063,112.3,112.29,102.44022406]
[1744319683430,0.063,112.3,112.29,79.123]
[1744319684317,0.063,112.3,112.29,93.53472406]
[1744319684832,0.063,112.3,112.29,79.123]
[1744319691836,0.063,112.3,112.29,102.44022406]
[1744319695535,0.063,112.3,112.29,88.0285]
[1744319695742,0.063,112.3,112.29,102.44022406]
[1744319697441,0.063,112.3,112.29,88.0285]
[1744319697626,0.063,112.3,112.29,102.44022406]
[1744319700735,0.063,112.3,112.29,93.53472406]
[1744319700942,0.063,112.3,112.29,79.123]
[1744319704242,0.063,112.3,112.29,93.53472406]
[1744319705142,0.063,112.3,112.29,102.44022406]
[1744319705319,0.063,112.3,112.29,93.53472406]
[1744319708335,14.47472406,112.33,112.29,93.53472406]
[1744319708336,0.063,112.33,112.32,26.0]
[1744319708537,0.063,112.33,112.32,166.34137292]
[1744319708716,0.063,112.34,112.33,18.64964886]
[1744319708921,0.063,112.34,112.33,28.9267228]
[1744319709144,0.063,112.34,112.33,37.0584228]
[1744319709515,0.0001,112.34,112.33,44.24377314]
[1744319709724,0.063,112.37,112.35,27.55034886]
[1744319710031,0.063,112.37,112.35,121.02207292]
[1744319711843,0.063,112.37,112.36,20.42648471]
[1744319712040,0.063,112.37,112.36,43.05820877]
[1744319712637,0.063,112.37,112.36,42.63172406]
[1744319712818,0.063,112.37,112.36,28.22]
[1744319713022,0.063,112.37,112.36,8.22]
[1744319713249,0.063,112.37,112.36,22.63172406]
[1744319713434,0.063,112.4,112.37,78.997]
[1744319713751,0.063,112.4,112.39,14.41172406]
[1744319714134,0.063,112.4,112.39,23.30922406]
[1744319715248,0.063,112.4,112.39,41.95887292]
[1744319715454,0.063,112.4,112.39,42.38535763]
[1744319715830,0.063,112.41,112.4,38.64964886]
[1744319716029,0.063,112.41,112.4,53.06137292]
[1744319716352,0.063,112.41,112.4,61.95807292]
[1744319716556,0.063,112.41,112.4,70.58455763]
[1744319718429,0.063,112.42,112.41,33.06137292]
[1744319720237,0.063,112.42,112.41,41.95737292]
[1744319720438,0.063,112.43,112.42,78.934]
[1744319720750,0.063,112.43,112.42,93.34572406]
[1744319721254,0.063,112.43,112.42,102.24092406]
[1744319721461,0.063,112.43,112.42,78.934]
[1744319726659,14.47472406,112.43,112.42,78.934]
[1744319727034,0.063,112.43,112.42,78.934]
[1744319730646,14.47472406,112.43,112.42,78.934]
[1744319730845,16.00742406,112.43,112.39,8.2]
[1744319731045,14.41172406,112.41,112.38,87.134]
[1744319732152,14.41172406,112.42,112.38,87.134]
[1744319732654,23.30722406,112.42,112.38,87.134]
[1744319733660,23.30722406,112.42,112.38,96.0323]
[1744319734046,23.30722406,112.42,112.38,110.44402406]
[1744319739447,23.30722406,112.42,112.38,101.54572406]
[1744319739657,8.8955,112.42,112.39,14.41172406]
[1744319739966,24.90222406,112.43,112.39,14.41172406]
[1744319740153,14.41172406,112.42,112.38,110.44392406]
[1744319740570,24.90222406,112.43,112.38,110.44392406]
[1744319743572,24.40222406,112.43,112.38,110.44392406]
[1744319745376,23.30712406,112.42,112.38,110.44392406]
[1744319747069,23.30712406,112.42,112.38,96.0322]
[1744319747453,14.41172406,112.41,112.38,96.0322]
[1744319750254,23.30712406,112.42,112.38,110.44392406]
[1744319753276,14.41172406,112.41,112.38,96.0322]
[1744319755080,14.41172406,112.41,112.38,87.134]
[1744319755277,14.41172406,112.41,112.38,96.0323]
[1744319759496,14.41172406,112.4,112.38,87.134]
[1744319759679,14.41172406,112.39,112.38,87.134]
[1744319760174,14.41172406,112.4,112.38,87.134]
[1744319760587,23.30782406,112.41,112.38,87.134]
[1744319760785,14.41172406,112.4,112.38,87.134]
[1744319760983,14.41172406,112.4,112.38,78.934]
[1744319761284,0.03,112.46,112.41,20.0]
[1744319761485,0.03,112.46,112.45,14.41172406]
[1744319762364,0.03,112.46,112.45,102.23852406]
[1744319769127,0.03,112.46,112.45,87.8268]
[1744319769314,0.03,112.46,112.45,78.934]
[1744319772014,14.44172406,112.46,112.45,78.934]
[1744319772211,14.44172406,112.46,112.42,78.934]
[1744319772533,14.41172406,112.45,112.42,78.934]
[1744319773730,23.30492406,112.45,112.42,78.934]
[1744319773926,14.41172406,112.44,112.42,78.934]
[1744319774525,8.8932,112.45,112.42,78.934]
[1744319774715,23.30492406,112.45,112.42,78.934]
[1744319775024,14.41172406,112.44,112.42,78.934]
[1744319775624,14.41172406,112.43,112.42,78.934]
[1744319775824,14.41172406,112.43,112.38,0.063]
[1744319775825,8.8952,112.42,112.4,78.934]
[1744319776018,23.30692406,112.42,112.4,78.934]
[1744319776729,14.41172406,112.42,112.4,78.934]
[1744319778532,23.30702406,112.42,112.4,78.934]
[1744319778720,14.41172406,112.41,112.4,78.934]
[1744319779718,23.30822406,112.41,112.38,87.197]
[1744319779899,14.41172406,112.4,112.38,87.197]
[1744319780098,14.41172406,112.4,112.38,78.997]
[1744319781004,23.30862406,112.4,112.38,78.997]
[1744319781209,14.41172406,112.42,112.38,102.30662406]
[1744319781511,32.92419844,112.43,112.38,110.33119844]
[1744319783008,32.92419844,112.43,112.39,31.33369844]
[1744319784512,22.43629844,112.42,112.38,87.8949]
[1744319785596,22.43629844,112.41,112.38,87.8949]
[1744319785913,8.8955,112.42,112.38,87.8949]
[1744319786214,22.43629844,112.41,112.38,87.8949]
[1744319790609,22.43629844,112.4,112.38,78.997]
[1744319790788,22.43629844,112.39,112.38,0.063]
[1744319791501,31.33379844,112.39,112.38,0.063]
[1744319793518,31.33339844,112.4,112.38,0.063]
[1744319798318,22.43629844,112.39,112.38,0.063]
[1744319798518,31.33379844,112.39,112.38,0.063]
[1744319798896,31.76028315,112.39,112.38,0.063]
[1744319799412,33.42588315,112.39,112.38,0.063]
[1744319799603,33.42588315,112.39,112.35,78.997]
[1744319799604,78.8650594,112.39,112.35,78.997]
[1744319799808,19.07613357,112.35,112.33,0.063]
[1744319800126,22.86278315,112.34,112.33,0.063]
[1744319800308,22.43629844,112.34,112.33,0.063]
[1744319803206,31.33779844,112.34,112.33,0.063]
[1744319805306,31.76428315,112.34,112.33,0.063]
[1744319805519,33.35348315,112.34,112.33,0.063]
[1744319806225,52.00313201,112.34,112.33,0.063]
[1744319811312,43.95646941,112.34,112.33,0.063]
[1744319820724,0.42648471,112.33,112.3,0.063]
[1744319821024,14.81612055,112.31,112.3,0.063]
[1744319821251,33.46576941,112.31,112.3,0.063]
[1744319822557,42.36966941,112.31,112.3,0.063]
[1744319823931,44.64964886,112.29,112.28,0.063]
[1744319824122,59.0392847,112.29,112.28,0.063]
[1744319824317,8.9039,112.31,112.28,0.063]
[1744319824518,14.38963584,112.3,112.28,0.063]
[1744319825163,14.38963584,112.29,112.28,0.063]
[1744319825528,23.29353584,112.31,112.28,78.997]
[1744319825848,14.38963584,112.3,112.28,78.997]
[1744319826727,8.9039,112.31,112.28,78.997]
[1744319826927,14.38963584,112.3,112.28,78.997]
[1744319828131,14.38963584,112.29,112.28,78.997]
[1744319828646,14.38963584,112.3,112.28,78.997]
[1744319830249,14.38963584,112.31,112.28,78.997]
[1744319830837,14.38963584,112.29,112.28,78.997]
[1744319831231,14.38963584,112.3,112.28,78.997]
[1744319831430,14.38963584,112.29,112.28,78.997]
[1744319832250,23.29513584,112.29,112.28,78.997]
[1744319832850,23.72162055,112.29,112.28,78.997]
[1744319833029,23.72162055,112.29,112.28,0.063]
[1744319834643,42.37126941,112.29,112.28,0.063]
[1744319836052,0.42648471,112.28,112.26,0.063]
[1744319836253,125.50482806,112.27,112.26,0.063]
[1744319836552,67.9462847,112.27,112.26,0.063]
[1744319836933,23.72312055,112.27,112.26,0.063]
[1744319837952,14.38963584,112.27,112.26,0.063]
[1744319838651,23.29663584,112.27,112.26,0.063]
[1744319839239,14.38963584,112.28,112.26,0.063]
[1744319839445,14.38963584,112.29,112.26,78.997]
[1744319839635,9.04606157,112.31,112.26,93.38663584]
[1744319839842,14.38963584,112.3,112.26,93.38663584]
[1744319840656,14.38963584,112.3,112.26,102.29393584]
[1744319843061,14.38963584,112.32,112.27,14.38963584]
[1744319843256,14.38963584,112.32,112.28,14.38963584]
[1744319843458,14.38963584,112.31,112.27,93.32363584]
[1744319843664,9.04466157,112.33,112.28,14.38963584]
[1744319843839,23.43429741,112.33,112.29,8.9055]
[1744319844034,9.04466157,112.33,112.28,29.44423584]
[1744319844262,14.38963584,112.32,112.28,29.44423584]
[1744319846557,14.38963584,112.32,112.28,108.37823584]
[1744319846864,23.29273584,112.32,112.28,108.37823584]
[1744319847767,14.38963584,112.32,112.28,108.37823584]
[1744319848078,14.38963584,112.33,112.29,15.95103584]
[1744319848647,14.38963584,112.33,112.29,1.5614]
[1744319848881,14.38963584,112.33,112.29,15.95103584]
[1744319849273,14.38963584,112.33,112.29,24.85583584]
[1744319849648,14.38963584,112.31,112.28,87.134]
[1744319849853,14.38963584,112.29,112.28,78.934]
[1744319850460,14.38963584,112.29,112.26,78.997]
[1744319850649,14.38963584,112.27,112.26,78.997]
[1744319851360,14.38963584,112.28,112.26,78.997]
[1744319854668,14.38963584,112.27,112.26,78.997]
[1744319857688,13.88963584,112.27,112.26,78.997]
[1744319858561,8.9064,112.28,112.26,78.997]
[1744319858762,23.29603584,112.28,112.26,78.997]
[1744319859076,14.38963584,112.28,112.26,78.997]
[1744319859874,23.29603584,112.28,112.26,78.997]
[1744319860456,14.38963584,112.27,112.26,78.997]
[1744319860656,14.81612055,112.27,112.26,0.063]
[1744319861058,33.46576941,112.27,112.26,0.063]
[1744319862278,42.37276941,112.27,112.26,0.063]
[1744319863559,27.98313357,112.27,112.26,0.063]
[1744319863861,42.37276941,112.27,112.26,0.063]
[1744319864279,23.72312055,112.27,112.26,0.063]
[1744319874775,23.29663584,112.27,112.26,0.063]
[1744319882398,8.907,112.27,112.26,0.063]
[1744319882593,23.29663584,112.27,112.26,0.063]
[1744319896109,8.907,112.27,112.26,0.063]
[1744319896407,23.29663584,112.27,112.26,0.063]
[1744319896986,42.37276941,112.27,112.26,0.063]
[1744319908322,23.72312055,112.27,112.26,0.063]
[1744319916019,8.907,112.27,112.26,0.063]
[1744319916412,23.72312055,112.27,112.26,0.063]
[1744319918019,9.33348471,112.27,112.26,0.063]
[1744319918205,23.72312055,112.27,112.26,0.063]
[1744319921219,42.37276941,112.27,112.26,0.063]
[1744319924620,23.72312055,112.27,112.26,0.063]
[1744319926539,42.37276941,112.27,112.26,0.063]
[1744319936134,23.72312055,112.27,112.26,0.063]
[1744319936334,9.33348471,112.27,112.26,0.063]
[1744319936635,23.72312055,112.27,112.26,0.063]
[1744319937834,23.29633584,112.28,112.26,0.063]
[1744319938032,9.04766157,112.29,112.26,0.063]
[1744319938237,23.43729741,112.29,112.26,0.063]
[1744319938837,14.38963584,112.28,112.26,0.063]
[1744319939737,9.04766157,112.29,112.26,0.063]
[1744319939935,14.38963584,112.28,112.26,0.063]
[1744319940237,9.04766157,112.29,112.26,0.063]
[1744319940446,8.9055,112.29,112.26,78.997]
[1744319940648,23.29513584,112.29,112.26,78.997]
[1744319941435,8.9055,112.29,112.26,78.997]
[1744319941740,23.29513584,112.29,112.26,78.997]
[1744319941914,8.9055,112.29,112.26,78.997]
[1744319942119,14.38963584,112.31,112.27,14.38963584]
[1744319942313,14.38963584,112.31,112.27,99.47353584]
[1744319942940,14.45263584,112.32,112.27,99.47353584]
[1744319943320,23.35613584,112.32,112.27,99.47353584]
[1744319943535,23.35613584,112.32,112.28,24.79563584]
[1744319943734,23.35613584,112.32,112.28,103.72963584]
[1744319943937,23.35613584,112.32,112.28,94.82383584]